fUST/lending_fUST_20240607
["ID","MTS","AMOUNT","RATE_DAILY","PERIOD"]
[328682104,1717697434569,-166.666666,0.00022731,2]
[328682106,1717697434578,-155.2147069,0.00023,2]
[328682108,1717697434587,-839.2181957,0.00023125,2]
[328682110,1717697434597,-1881.2570651,0.00023173,2]
[328682112,1717697434607,-166.666666,0.00023351,2]
[328682114,1717697434618,-206.81901429,0.00023398,2]
[328682116,1717697434628,-172.25346231,0.000239,2]
[328682118,1717697434637,-166.666666,0.00023971,2]
[328682120,1717697434647,-1000.0,0.00024,2]
[328682122,1717697434656,-166.666666,0.00024493,2]
[328682124,1717697434666,-351.18199564,0.00024555,2]
[328682126,1717697434676,-604.54531082,0.00024556,2]
[328682128,1717697434689,-410.16264916,0.00024556,2]
[328682130,1717697434698,-166.666666,0.00024591,2]
[328682132,1717697434708,-153.0,0.00024603,2]
[328682134,1717697434718,-153.0,0.00024603,2]
[328682136,1717697434727,-153.0,0.00024603,2]
[328682139,1717697434737,-351.18199562,0.00024624,2]
[328682141,1717697434746,-2359.80730123,0.00024655,2]
[328682144,1717697434758,-1976.22189984,0.00024655,2]
[328682177,1717697438371,-633.69415174,0.00024655,2]
[328682178,1717697438383,-23546.1756307,0.00024655,2]
[328682179,1717697438512,-18099.21342892,0.00024655,2]
[328682180,1717697438522,-500.0,0.00024655,2]
[328682181,1717697438532,-532.08989288,0.00024655,2]
[328682182,1717697438542,-195.64228517,0.00024655,2]
[328682183,1717697438551,-289.34559732,0.00024655,2]
[328682184,1717697438560,-500.0,0.00024655,2]
[328682185,1717697438570,-500.0,0.00024655,2]
[328682186,1717697438579,-500.0,0.00024655,2]
[328682187,1717697438589,-500.0,0.00024655,2]
[328682188,1717697438598,-500.0,0.00024655,2]
[328682189,1717697438607,-500.0,0.00024655,2]
[328682190,1717697438619,-500.0,0.00024655,2]
[328682191,1717697438629,-487.04964218,0.00024656,2]
[328682192,1717697438638,-618.43956784,0.00024656,2]
[328682193,1717697438648,-500.0,0.00024656,2]
[328682194,1717697438657,-444.05093785,0.00024656,2]
[328682195,1717697438667,-156.12923306,0.00024656,2]
[328682196,1717697438676,-211.11509627,0.00024656,2]
[328682197,1717697438685,-409.82251792,0.00024656,2]
[328682198,1717697438695,-300.0,0.00024656,2]
[328682199,1717697438706,-500.0,0.00024656,2]
[328682200,1717697438716,-192.46039845,0.00024656,2]
[328682201,1717697438725,-500.0,0.00024656,2]
[328682202,1717697438735,-500.0,0.00024656,2]
[328682203,1717697438745,-215.26998349,0.00024656,2]
[328682204,1717697438755,-500.0,0.00024656,2]
[328682205,1717697438764,-500.0,0.00024656,2]
[328682206,1717697438774,-500.0,0.00024656,2]
[328682207,1717697438785,-500.0,0.00024657,2]
[328682208,1717697438794,-500.0,0.00024657,2]
[328682209,1717697438804,-398.44629751,0.00024657,2]
[328682223,1717697442719,-105.36013203,0.00024657,2]
[328682224,1717697442729,-580.91594452,0.00024657,2]
[328682226,1717697442740,-500.0,0.00024657,2]
[328682227,1717697442750,-514.16751253,0.00024657,2]
[328682228,1717697442760,-500.0,0.00024657,2]
[328682229,1717697442769,-500.0,0.00024657,2]
[328682230,1717697442779,-500.0,0.00024657,2]
[328682231,1717697442788,-500.0,0.00024657,2]
[328682232,1717697442798,-500.0,0.00024657,2]
[328682233,1717697442807,-624.59864895,0.00024657,2]
[328682234,1717697442817,-684.99,0.00024657,2]
[328682235,1717697442826,-155.51097003,0.00024657,2]
[328682236,1717697442835,-500.0,0.00024657,2]
[328682237,1717697442845,-318.84357926,0.00024657,2]
[328682238,1717697442854,-477.11561194,0.00024657,2]
[328682371,1717697444686,-174.27438806,0.00024657,2]
[328682373,1717697444695,-543.61,0.00024657,2]
[328682375,1717697444704,-500.0,0.00024657,2]
[328682377,1717697444713,-500.0,0.00024657,2]
[328682379,1717697444723,-500.0,0.00024657,2]
[328682381,1717697444732,-227.24581047,0.00024657,2]
[328682383,1717697444744,-365.18418953,0.00024657,2]
[328682385,1717697444754,-500.0,0.00024657,2]
[328682387,1717697444763,-428.53836586,0.00024657,2]
[328682389,1717697444775,-403.01163414,0.00024657,2]
[328682391,1717697444784,-500.0,0.00024657,2]
[328682393,1717697444794,-500.0,0.00024657,2]
[328682395,1717697444804,-500.0,0.00024657,2]
[328682397,1717697444813,-353.90933251,0.00024657,2]
[328682400,1717697444824,-146.09066749,0.00024657,2]
[328682402,1717697444833,-500.0,0.00024657,2]
[328682404,1717697444843,-500.0,0.00024657,2]
[328682406,1717697444852,-500.0,0.00024657,2]
[328682408,1717697444861,-481.40931751,0.00024657,2]
[328682452,1717697446454,-18.59068249,0.00024657,2]
[328682454,1717697446464,-500.0,0.00024657,2]
[328682456,1717697446474,-200.0,0.00024657,2]
[328682458,1717697446483,-500.0,0.00024657,2]
[328682459,1717697446494,-326.5893206,0.00024657,2]
[328682460,1717697446504,-500.0,0.00024657,2]
[328682461,1717697446513,-500.0,0.00024657,2]
[328682462,1717697446523,-500.0,0.00024657,2]
[328682463,1717697446532,-233.99007782,0.00024657,2]
[328682464,1717697446542,-500.0,0.00024657,2]
[328682465,1717697446551,-500.0,0.00024657,2]
[328682466,1717697446560,-1209.5,0.00024657,2]
[328682467,1717697446569,-500.0,0.00024657,2]
[328682468,1717697446578,-483.34614025,0.00024657,2]
[328682469,1717697446587,-500.0,0.00024657,2]
[328682470,1717697446597,-909.27,0.00024657,2]
[328682471,1717697446606,-500.0,0.00024657,2]
[328682472,1717697446616,-500.0,0.00024657,2]
[328682473,1717697446626,-500.0,0.00024657,2]
[328682474,1717697446636,-811.99,0.00024657,2]
[328682475,1717697446645,-500.0,0.00024657,2]
[328682476,1717697446655,-1021.39,0.00024657,2]
[328682477,1717697446665,-500.0,0.00024657,2]
[328682478,1717697446674,-555.3140995,0.00024657,2]
[328682479,1717697446683,-500.0,0.00024657,2]
[328682480,1717697446693,-500.0,0.00024657,2]
[328682481,1717697446702,-500.0,0.00024657,2]
[328682482,1717697446711,-500.0,0.00024657,2]
[328682483,1717697446720,-500.0,0.00024657,2]
[328682484,1717697446729,-500.0,0.00024657,2]
[328682485,1717697446739,-234.96939306,0.00024657,2]
[328682486,1717697446748,-500.0,0.00024657,2]
[328682487,1717697446758,-500.0,0.00024657,2]
[328682488,1717697446767,-500.0,0.00024657,2]
[328682489,1717697446776,-545.34681441,0.00024657,2]
[328682490,1717697446785,-500.0,0.00024657,2]
[328682491,1717697446795,-500.0,0.00024657,2]
[328682492,1717697446804,-500.0,0.00024657,2]
[328682493,1717697446814,-500.0,0.00024657,2]
[328682494,1717697446823,-500.0,0.00024657,2]
[328682495,1717697446832,-500.0,0.00024657,2]
[328682496,1717697446842,-500.0,0.00024657,2]
[328682497,1717697446851,-500.0,0.00024657,2]
[328682498,1717697446860,-500.0,0.00024657,2]
[328682499,1717697446871,-737.79,0.00024657,2]
[328682500,1717697446881,-500.0,0.00024657,2]
[328682501,1717697446890,-647.52,0.00024657,2]
[328682502,1717697446899,-1542.05,0.00024657,2]
[328682503,1717697446909,-500.0,0.00024657,2]
[328682504,1717697446922,-673.98,0.00024657,2]
[328682505,1717697446931,-500.0,0.00024657,2]
[328682506,1717697446940,-1079.87,0.00024657,2]
[328682507,1717697446950,-1703.45,0.00024657,2]
[328682508,1717697446960,-500.0,0.00024657,2]
[328682509,1717697446969,-973.14,0.00024657,2]
[328682510,1717697446978,-500.0,0.00024657,2]
[328682511,1717697446987,-525.26787255,0.00024657,2]
[328682512,1717697447000,-500.0,0.00024657,2]
[328682513,1717697447010,-513.39,0.00024657,2]
[328682514,1717697447019,-3873.87,0.00024657,2]
[328682515,1717697447029,-500.0,0.00024657,2]
[328682516,1717697447038,-500.0,0.00024657,2]
[328682517,1717697447047,-500.0,0.00024657,2]
[328682518,1717697447057,-264.71223964,0.00024657,2]
[328682519,1717697447066,-1455.03,0.00024657,2]
[328682520,1717697447075,-500.0,0.00024657,2]
[328682521,1717697447084,-562.95,0.00024657,2]
[328682522,1717697447093,-952.85,0.00024657,2]
[328682523,1717697447103,-2823.51,0.00024657,2]
[328682524,1717697447111,-503.58743269,0.00024657,2]
[328682525,1717697447122,-500.0,0.00024657,2]
[328682526,1717697447131,-500.0,0.00024657,2]
[328682527,1717697447140,-500.0,0.00024657,2]
[328682528,1717697447152,-500.0,0.00024657,2]
[328682529,1717697447161,-3838.14,0.00024657,2]
[328682530,1717697447170,-494.24173241,0.00024657,2]
[328682531,1717697447179,-500.0,0.00024657,2]
[328682532,1717697447188,-500.0,0.00024657,2]
[328682533,1717697447197,-554.32114719,0.00024657,2]
[328682534,1717697447207,-4496.04,0.00024657,2]
[328682535,1717697447215,-1468.67,0.00024657,2]
[328682536,1717697447225,-500.0,0.00024657,2]
[328682537,1717697447234,-500.0,0.00024657,2]
[328682538,1717697447244,-500.0,0.00024657,2]
[328682539,1717697447253,-500.0,0.00024657,2]
[328682540,1717697447262,-4835.49,0.00024657,2]
[328682541,1717697447272,-923.57,0.00024657,2]
[328682542,1717697447281,-705.88,0.00024657,2]
[328682543,1717697447291,-683.45,0.00024657,2]
[328682544,1717697447300,-500.0,0.00024657,2]
[328682545,1717697447310,-500.0,0.00024657,2]
[328682546,1717697447319,-500.0,0.00024657,2]
[328682547,1717697447328,-500.0,0.00024657,2]
[328682548,1717697447337,-500.0,0.00024657,2]
[328682549,1717697447346,-503.96156133,0.00024657,2]
[328682550,1717697447355,-500.0,0.00024657,2]
[328682551,1717697447364,-642.56,0.00024657,2]
[328682552,1717697447376,-500.0,0.00024657,2]
[328682553,1717697447385,-880.07,0.00024657,2]
[328682554,1717697447395,-698.96,0.00024657,2]
[328682555,1717697447403,-500.0,0.00024657,2]
[328682556,1717697447413,-500.0,0.00024657,2]
[328682557,1717697447422,-500.0,0.00024657,2]
[328682558,1717697447431,-500.0,0.00024657,2]
[328682559,1717697447441,-3232.42,0.00024657,2]
[328682560,1717697447450,-500.0,0.00024657,2]
[328682561,1717697447459,-500.0,0.00024657,2]
[328682562,1717697447468,-305.82468366,0.00024657,2]
[328682563,1717697447477,-500.0,0.00024657,2]
[328682564,1717697447486,-500.0,0.00024657,2]
[328682565,1717697447496,-500.0,0.00024657,2]
[328682566,1717697447505,-500.0,0.00024657,2]
[328682567,1717697447515,-281.60525843,0.00024657,2]
[328682568,1717697447524,-432.37924631,0.00024657,2]
[328682569,1717697447533,-351.18199562,0.00024693,2]
[328682570,1717697447542,-150.0,0.00024697,2]
[328682571,1717697447551,-351.18199562,0.00024761,2]
[328682572,1717697447561,-351.18199562,0.0002483,2]
[328682573,1717697447570,-612.34490051,0.0002483,2]
[328682574,1717697447579,-13992.36,0.0002489,3]
[328682575,1717697447589,-1014.70795992,0.00024891,2]
[328682576,1717697447598,-64343.07117631,0.000249,3]
[328682577,1717697447607,-4236.27632862,0.00024909,2]
[328682578,1717697447617,-500.0,0.0002493,2]
[328682579,1717697447628,-500.0,0.0002493,2]
[328682580,1717697447638,-335.4322036,0.00024931,7]
[328682581,1717697447648,-496.62831701,0.00024931,2]
[328682582,1717697447657,-500.0,0.00024931,2]
[328682583,1717697447666,-500.0,0.00024931,2]
[328682584,1717697447675,-500.0,0.00024931,2]
[328682585,1717697447684,-500.0,0.00024931,2]
[328682586,1717697447694,-513.05966408,0.00024931,2]
[328682587,1717697447703,-500.0,0.00024931,2]
[328682588,1717697447712,-500.0,0.00024931,2]
[328682589,1717697447721,-684.99,0.00024931,2]
[328682590,1717697447731,-568.58636818,0.00024931,2]
[328682591,1717697447741,-651.39,0.00024931,2]
[328682592,1717697447750,-500.0,0.00024931,2]
[328682593,1717697447759,-543.61,0.00024931,2]
[328682594,1717697447769,-500.0,0.00024931,2]
[328682595,1717697447778,-592.43,0.00024931,2]
[328682596,1717697447787,-268.5794634,0.00024931,2]
[328682597,1717697447797,-831.55,0.00024931,2]
[328682598,1717697447806,-500.0,0.00024931,2]
[328682599,1717697447815,-500.0,0.00024931,2]
[328682600,1717697447827,-500.0,0.00024931,2]
[328682601,1717697447837,-500.0,0.00024931,2]
[328682602,1717697447846,-500.0,0.00024931,2]
[328682603,1717697447855,-500.0,0.00024931,2]
[328682604,1717697447864,-500.0,0.00024931,2]
[328682605,1717697447874,-500.0,0.00024931,2]
[328682606,1717697447883,-500.0,0.00024931,2]
[328682607,1717697447892,-200.0,0.00024931,2]
[328682608,1717697447901,-500.0,0.00024931,2]
[328682609,1717697447911,-500.0,0.00024931,2]
[328682610,1717697447925,-500.0,0.00024931,2]
[328682611,1717697447935,-500.0,0.00024931,2]
[328682612,1717697447944,-500.0,0.00024931,2]
[328682613,1717697447955,-500.0,0.00024931,2]
[328682614,1717697447964,-1209.5,0.00024931,2]
[328682615,1717697447973,-500.0,0.00024931,2]
[328682616,1717697447983,-500.0,0.00024931,2]
[328682617,1717697447993,-909.27,0.00024931,2]
[328682618,1717697448002,-500.0,0.00024931,2]
[328682619,1717697448011,-500.0,0.00024931,2]
[328682620,1717697448020,-500.0,0.00024931,2]
[328682621,1717697448029,-811.99,0.00024931,2]
[328682622,1717697448039,-500.0,0.00024931,2]
[328682623,1717697448048,-1021.39,0.00024931,2]
[328682624,1717697448058,-500.0,0.00024931,2]
[328682625,1717697448067,-500.0,0.00024931,2]
[328682626,1717697448076,-632.75403515,0.00024931,2]
[328682627,1717697448086,-500.0,0.00024931,2]
[328682628,1717697448096,-500.0,0.00024931,2]
[328682629,1717697448105,-500.0,0.00024931,2]
[328682630,1717697448115,-500.0,0.00024931,2]
[328682631,1717697448126,-500.0,0.00024931,2]
[328682632,1717697448135,-500.0,0.00024931,2]
[328682633,1717697448144,-281.5068636,0.00024931,2]
[328682634,1717697448154,-500.0,0.00024931,2]
[328682635,1717697448163,-737.79,0.00024931,2]
[328682636,1717697448172,-500.0,0.00024931,2]
[328682637,1717697448181,-647.52,0.00024931,2]
[328682638,1717697448191,-1542.05,0.00024931,2]
[328682639,1717697448200,-673.98,0.00024931,2]
[328682640,1717697448209,-500.0,0.00024931,2]
[328682641,1717697448218,-1079.87,0.00024931,2]
[328682642,1717697448227,-1703.45,0.00024931,2]
[328682643,1717697448236,-500.0,0.00024931,2]
[328682644,1717697448245,-973.14,0.00024931,2]
[328682645,1717697448254,-500.0,0.00024931,2]
[328682646,1717697448263,-513.39,0.00024931,2]
[328682647,1717697448272,-3873.87,0.00024931,2]
[328682648,1717697448281,-370.43653213,0.00024931,2]
[328682649,1717697448290,-500.0,0.00024931,2]
[328682650,1717697448299,-500.0,0.00024931,2]
[328682651,1717697448308,-1455.03,0.00024931,2]
[328682652,1717697448318,-500.0,0.00024931,2]
[328682653,1717697448327,-562.95,0.00024931,2]
[328682654,1717697448338,-952.85,0.00024931,2]
[328682655,1717697448347,-2823.51,0.00024931,2]
[328682656,1717697448356,-505.92399926,0.00024931,2]
[328682657,1717697448365,-500.0,0.00024931,2]
[328682658,1717697448375,-500.0,0.00024931,2]
[328682659,1717697448384,-500.0,0.00024931,2]
[328682660,1717697448393,-3838.14,0.00024931,2]
[328682661,1717697448403,-500.0,0.00024931,2]
[328682662,1717697448412,-500.0,0.00024931,2]
[328682663,1717697448421,-4496.04,0.00024931,2]
[328682664,1717697448430,-1468.67,0.00024931,2]
[328682665,1717697448440,-541.77507277,0.00024931,2]
[328682666,1717697448449,-500.0,0.00024931,2]
[328682667,1717697448459,-500.0,0.00024931,2]
[328682668,1717697448468,-500.0,0.00024931,2]
[328682669,1717697448477,-4835.49,0.00024931,2]
[328682670,1717697448487,-923.57,0.00024931,2]
[328682671,1717697448496,-705.88,0.00024931,2]
[328682672,1717697448505,-683.45,0.00024931,2]
[328682673,1717697448515,-541.04263812,0.00024931,2]
[328682674,1717697448524,-500.0,0.00024931,2]
[328682675,1717697448533,-500.0,0.00024931,2]
[328682676,1717697448542,-500.0,0.00024931,2]
[328682677,1717697448551,-500.0,0.00024931,2]
[328682678,1717697448560,-500.0,0.00024931,2]
[328682679,1717697448569,-642.56,0.00024931,2]
[328682680,1717697448578,-880.07,0.00024931,2]
[328682681,1717697448587,-698.96,0.00024931,2]
[328682682,1717697448596,-500.0,0.00024931,2]
[328682683,1717697448605,-584.80523407,0.00024931,2]
[328682684,1717697448614,-3232.42,0.00024931,2]
[328682685,1717697448623,-500.0,0.00024931,2]
[328682686,1717697448632,-500.0,0.00024931,2]
[328682687,1717697448641,-170.60701289,0.00024931,2]
[328682688,1717697448651,-1000.000001,0.00025,2]
[328682689,1717697448660,-160.0,0.00025014,3]
[328682690,1717697448669,-205.1548009,0.00025068,2]
[328682691,1717697448678,-500.0,0.00025204,2]
[328682692,1717697448687,-500.0,0.00025204,2]
[328682693,1717697448696,-609.64052879,0.00025205,2]
[328682694,1717697448705,-500.0,0.00025205,2]
[328682695,1717697448715,-500.0,0.00025205,2]
[328682696,1717697448724,-162.32685027,0.00025205,2]
[328682697,1717697448734,-500.0,0.00025205,2]
[328682698,1717697448744,-570.57228022,0.00025205,2]
[328682699,1717697448753,-684.99,0.00025205,2]
[328682700,1717697448763,-651.39,0.00025205,2]
[328682701,1717697448772,-500.0,0.00025205,2]
[328682702,1717697448782,-543.61,0.00025205,2]
[328682703,1717697448791,-500.0,0.00025205,2]
[328682704,1717697448800,-592.43,0.00025205,2]
[328682705,1717697448809,-831.55,0.00025205,2]
[328682706,1717697448819,-500.0,0.00025205,2]
[328682707,1717697448828,-500.0,0.00025205,2]
[328682708,1717697448838,-500.0,0.00025205,2]
[328682709,1717697448848,-500.0,0.00025205,2]
[328682710,1717697448858,-500.0,0.00025205,2]
[328682711,1717697448867,-500.0,0.00025205,2]
[328682712,1717697448880,-500.0,0.00025205,2]
[328682713,1717697448890,-500.0,0.00025205,2]
[328682714,1717697448899,-500.0,0.00025205,2]
[328682715,1717697448910,-202.72525022,0.00025205,2]
[328682716,1717697448923,-500.0,0.00025205,2]
[328682717,1717697448932,-374.0201086,0.00025205,2]
[328682718,1717697448942,-500.0,0.00025205,2]
[328682719,1717697448951,-500.0,0.00025205,2]
[328682720,1717697448962,-500.0,0.00025205,2]
[328682721,1717697448971,-500.0,0.00025205,2]
[328682722,1717697448980,-1209.5,0.00025205,2]
[328682723,1717697448991,-500.0,0.00025205,2]
[328682724,1717697449000,-500.0,0.00025205,2]
[328682725,1717697449009,-909.27,0.00025205,2]
[328682726,1717697449019,-500.0,0.00025205,2]
[328682727,1717697449028,-185.54679252,0.00025205,2]
[328682728,1717697449037,-500.0,0.00025205,2]
[328682729,1717697449046,-811.99,0.00025205,2]
[328682730,1717697449056,-500.0,0.00025205,2]
[328682731,1717697449065,-1021.39,0.00025205,2]
[328682732,1717697449075,-500.0,0.00025205,2]
[328682733,1717697449084,-500.0,0.00025205,2]
[328682734,1717697449094,-188.38299325,0.00025205,2]
[328682735,1717697449103,-423.06029683,0.00025205,2]
[328682736,1717697449112,-500.0,0.00025205,2]
[328682737,1717697449125,-500.0,0.00025205,2]
[328682738,1717697449134,-500.0,0.00025205,2]
[328682739,1717697449144,-500.0,0.00025205,2]
[328682740,1717697449153,-737.79,0.00025205,2]
[328682741,1717697449162,-500.0,0.00025205,2]
[328682742,1717697449171,-647.52,0.00025205,2]
[328682743,1717697449180,-1542.05,0.00025205,2]
[328682744,1717697449190,-673.98,0.00025205,2]
[328682745,1717697449199,-500.0,0.00025205,2]
[328682746,1717697449208,-1079.87,0.00025205,2]
[328682747,1717697449217,-1703.45,0.00025205,2]
[328682748,1717697449227,-500.0,0.00025205,2]
[328682749,1717697449236,-973.14,0.00025205,2]
[328682750,1717697449245,-500.0,0.00025205,2]
[328682751,1717697449255,-513.39,0.00025205,2]
[328682752,1717697449264,-3873.87,0.00025205,2]
[328682753,1717697449274,-500.0,0.00025205,2]
[328682754,1717697449283,-500.0,0.00025205,2]
[328682755,1717697449293,-1455.03,0.00025205,2]
[328682756,1717697449302,-500.0,0.00025205,2]
[328682757,1717697449312,-562.95,0.00025205,2]
[328682758,1717697449321,-952.85,0.00025205,2]
[328682759,1717697449330,-2823.51,0.00025205,2]
[328682760,1717697449339,-500.0,0.00025205,2]
[328682761,1717697449349,-500.0,0.00025205,2]
[328682762,1717697449358,-500.0,0.00025205,2]
[328682763,1717697449369,-3838.14,0.00025205,2]
[328682764,1717697449385,-500.0,0.00025205,2]
[328682765,1717697449394,-500.0,0.00025205,2]
[328682766,1717697449404,-4496.04,0.00025205,2]
[328682767,1717697449413,-1468.67,0.00025205,2]
[328682768,1717697449423,-500.0,0.00025205,2]
[328682769,1717697449432,-500.0,0.00025205,2]
[328682770,1717697449441,-500.0,0.00025205,2]
[328682771,1717697449451,-4835.49,0.00025205,2]
[328682772,1717697449461,-923.57,0.00025205,2]
[328682773,1717697449470,-705.88,0.00025205,2]
[328682774,1717697449480,-683.45,0.00025205,2]
[328682775,1717697449489,-500.0,0.00025205,2]
[328682776,1717697449498,-500.0,0.00025205,2]
[328682777,1717697449508,-291.47323671,0.00025205,2]
[328682778,1717697449518,-364.86641781,0.00025205,2]
[328682779,1717697449527,-500.0,0.00025205,2]
[328682780,1717697449536,-642.56,0.00025205,2]
[328682781,1717697449545,-880.07,0.00025205,2]
[328682782,1717697449554,-698.96,0.00025205,2]
[328682783,1717697449563,-500.0,0.00025205,2]
[328682784,1717697449572,-3232.42,0.00025205,2]
[328682785,1717697449582,-500.0,0.00025205,2]
[328682786,1717697449591,-500.0,0.00025205,2]
[328682787,1717697449600,-166.666666,0.0002521,2]
[328682788,1717697449610,-1014.70795992,0.00025226,2]
[328682789,1717697449619,-2000.0,0.00025379,2]
[328682790,1717697449632,-500.0,0.00025399,2]
[328682791,1717697449642,-1131.01,0.000254,3]
[328682792,1717697449650,-1131.01,0.000254,3]
[328682793,1717697449783,-1131.01,0.000254,3]
[328682794,1717697449793,-1131.01,0.000254,3]
[328682795,1717697449802,-1131.01,0.000254,3]
[328682796,1717697449812,-1131.01,0.000254,3]
[328682797,1717697449822,-1131.01,0.000254,3]
[328682798,1717697449831,-1131.01,0.000254,3]
[328682799,1717697449840,-1131.01,0.000254,3]
[328682800,1717697449850,-1131.01,0.000254,3]
[328682801,1717697449859,-1131.01,0.000254,3]
[328682802,1717697449870,-1131.01,0.000254,3]
[328682803,1717697449881,-1131.01,0.000254,3]
[328682804,1717697449890,-1131.01,0.000254,3]
[328682805,1717697449899,-1131.01,0.000254,3]
[328682806,1717697449908,-1131.01,0.000254,3]
[328682807,1717697449922,-1131.01,0.000254,3]
[328682808,1717697449931,-1131.01,0.000254,3]
[328682809,1717697449941,-1131.01,0.000254,3]
[328682810,1717697449950,-1131.01,0.000254,3]
[328682811,1717697449960,-713.59278238,0.00025477,2]
[328682812,1717697449970,-500.0,0.00025478,2]
[328682813,1717697449979,-500.0,0.00025478,2]
[328682814,1717697449988,-500.0,0.00025479,2]
[328682815,1717697450000,-500.0,0.00025479,2]
[328682816,1717697450010,-500.0,0.00025479,2]
[328682817,1717697450019,-684.99,0.00025479,2]
[328682818,1717697450028,-651.39,0.00025479,2]
[328682819,1717697450038,-169.13838736,0.00025479,2]
[328682820,1717697450047,-543.61,0.00025479,2]
[328682821,1717697450056,-500.0,0.00025479,2]
[328682822,1717697450066,-592.43,0.00025479,2]
[328682823,1717697450076,-831.55,0.00025479,2]
[328682824,1717697450086,-500.0,0.00025479,2]
[328682825,1717697450096,-500.0,0.00025479,2]
[328682826,1717697450106,-500.0,0.00025479,2]
[328682827,1717697450116,-500.0,0.00025479,2]
[328682828,1717697450127,-352.72339032,0.00025479,2]
[328682829,1717697450136,-500.0,0.00025479,2]
[328682830,1717697450145,-393.14439212,0.00025479,2]
[328682831,1717697450154,-500.0,0.00025479,2]
[328682832,1717697450163,-500.0,0.00025479,2]
[328682833,1717697450173,-500.0,0.00025479,2]
[328682834,1717697450182,-500.0,0.00025479,2]
[328682835,1717697450191,-500.0,0.00025479,2]
[328682836,1717697450200,-500.0,0.00025479,2]
[328682837,1717697450211,-500.0,0.00025479,2]
[328682838,1717697450220,-1209.5,0.00025479,2]
[328682839,1717697450230,-500.0,0.00025479,2]
[328682840,1717697450239,-500.0,0.00025479,2]
[328682841,1717697450248,-909.27,0.00025479,2]
[328682842,1717697450258,-500.0,0.00025479,2]
[328682843,1717697450268,-556.85168651,0.00025479,2]
[328682844,1717697450277,-811.99,0.00025479,2]
[328682845,1717697450287,-341.55676342,0.00025479,2]
[328682846,1717697450296,-1021.39,0.00025479,2]
[328682847,1717697450306,-500.0,0.00025479,2]
[328682848,1717697450316,-500.0,0.00025479,2]
[328682849,1717697450326,-500.0,0.00025479,2]
[328682850,1717697450335,-500.0,0.00025479,2]
[328682851,1717697450344,-500.0,0.00025479,2]
[328682852,1717697450354,-250.26,0.00025479,2]
[328682853,1717697450364,-737.79,0.00025479,2]
[328682854,1717697450375,-500.0,0.00025479,2]
[328682855,1717697450385,-647.52,0.00025479,2]
[328682856,1717697450394,-1542.05,0.00025479,2]
[328682857,1717697450403,-673.98,0.00025479,2]
[328682858,1717697450413,-500.0,0.00025479,2]
[328682859,1717697450422,-1079.87,0.00025479,2]
[328682860,1717697450431,-1703.45,0.00025479,2]
[328682861,1717697450440,-500.0,0.00025479,2]
[328682862,1717697450449,-973.14,0.00025479,2]
[328682863,1717697450458,-500.0,0.00025479,2]
[328682864,1717697450467,-513.39,0.00025479,2]
[328682865,1717697450476,-3873.87,0.00025479,2]
[328682866,1717697450485,-500.0,0.00025479,2]
[328682867,1717697450494,-500.0,0.00025479,2]